[Event "*** Titled Tuesday Blitz"]
[Site "Chess.com"]
[Date "2020.04.28"]
[Round "1"]
[White "CraiggoryC"]
[Black "arminmusovic"]
[Result "0-1"]
[WhiteElo "2064"]
[BlackElo "2499"]
[TimeControl "180+1"]
[EndTime "10:05:12 PDT"]
[Termination "arminmusovic won by resignation"]

1. e4 {[%clk 0:02:53.5]} 1... c6 {[%clk 0:02:59.7]} 2. Nf3 {[%clk 0:02:52.5]}
2... d5 {[%clk 0:02:59.9]} 3. e5 {[%clk 0:02:53]} 3... c5 {[%clk 0:02:58.4]} 4.
d4 {[%clk 0:02:52.8]} 4... Nc6 {[%clk 0:02:58.6]} 5. dxc5 {[%clk 0:02:48.3]}
5... Bg4 {[%clk 0:02:58.8]} 6. Bb5 {[%clk 0:02:45.9]} 6... e6 {[%clk 0:02:58]}
7. c3 {[%clk 0:02:45.6]} 7... Bxf3 {[%clk 0:02:55.7]} 8. Qxf3 {[%clk 0:02:43.8]}
8... Bxc5 {[%clk 0:02:53]} 9. b4 {[%clk 0:02:42.9]} 9... Bb6 {[%clk 0:02:51.5]}
10. Qg3 {[%clk 0:02:42.5]} 10... Kf8 {[%clk 0:02:51.1]} 11. O-O {[%clk
0:02:38.4]} 11... Nge7 {[%clk 0:02:51.5]} 12. Kh1 {[%clk 0:01:52.6]} 12... Rc8
{[%clk 0:02:29]} 13. Bg5 {[%clk 0:01:43.9]} 13... h6 {[%clk 0:02:26.7]} 14.
Bxe7+ {[%clk 0:01:07]} 14... Nxe7 {[%clk 0:02:27.6]} 15. Bd3 {[%clk 0:00:59.9]}
15... h5 {[%clk 0:02:15.2]} 16. f4 {[%clk 0:00:55.1]} 16... h4 {[%clk
0:02:13.4]} 17. Qh3 {[%clk 0:00:54.8]} 17... g6 {[%clk 0:02:12.5]} 18. Bc2
{[%clk 0:00:30.4]} 18... d4 {[%clk 0:02:03.5]} 19. Be4 {[%clk 0:00:15.7]} 19...
Nf5 {[%clk 0:01:53.5]} 20. Bxb7 {[%clk 0:00:08.8]} 20... Kg7 {[%clk 0:01:41.3]}
21. Be4 {[%clk 0:00:07.4]} 21... Ng3+ {[%clk 0:01:41.1]} 22. hxg3 {[%clk
0:00:05.4]} 22... hxg3 {[%clk 0:01:41.3]} 0-1

[Event "*** Titled Tuesday Blitz"]
[Site "Chess.com"]
[Date "2020.04.28"]
[Round "1"]
[White "Angry_Twin"]
[Black "VolodymyrMolyboha"]
[Result "1-0"]
[WhiteElo "2795"]
[BlackElo "2419"]
[TimeControl "180+1"]
[EndTime "10:05:16 PDT"]
[Termination "Angry_Twin won by resignation"]

1. e4 {[%clk 0:02:58.4]} 1... g6 {[%clk 0:02:58.2]} 2. d4 {[%clk 0:02:57.5]}
2... Bg7 {[%clk 0:02:57.7]} 3. Nc3 {[%clk 0:02:57.8]} 3... d6 {[%clk 0:02:56.5]}
4. f4 {[%clk 0:02:57.8]} 4... c6 {[%clk 0:02:56.4]} 5. Nf3 {[%clk 0:02:57.6]}
5... Bg4 {[%clk 0:02:55.2]} 6. Be2 {[%clk 0:02:49.6]} 6... d5 {[%clk 0:02:53.7]}
7. e5 {[%clk 0:02:49.2]} 7... e6 {[%clk 0:02:53.8]} 8. Be3 {[%clk 0:02:45.9]}
8... h5 {[%clk 0:02:53.2]} 9. Qd2 {[%clk 0:02:44.2]} 9... Nh6 {[%clk 0:02:53]}
10. g3 {[%clk 0:02:35.1]} 10... Nd7 {[%clk 0:02:49.6]} 11. O-O-O {[%clk
0:02:34.9]} 11... a6 {[%clk 0:02:48.1]} 12. h3 {[%clk 0:02:33.9]} 12... Bf5
{[%clk 0:02:43.2]} 13. Ng5 {[%clk 0:02:30.3]} 13... Qe7 {[%clk 0:02:40.2]} 14.
Rhg1 {[%clk 0:02:28]} 14... f6 {[%clk 0:02:37.6]} 15. g4 {[%clk 0:01:49.3]}
15... fxg5 {[%clk 0:02:34.9]} 16. fxg5 {[%clk 0:01:43.1]} 16... Nxg4 {[%clk
0:02:34.2]} 17. hxg4 {[%clk 0:01:43.2]} 17... hxg4 {[%clk 0:02:34.4]} 18. Bxg4
{[%clk 0:01:43.1]} 18... O-O-O {[%clk 0:02:32.4]} 19. Bxf5 {[%clk 0:01:43.3]}
19... exf5 {[%clk 0:02:31.4]} 20. Ne2 {[%clk 0:01:43.4]} 20... c5 {[%clk
0:02:27.1]} 21. c3 {[%clk 0:01:41.1]} 21... Rh2 {[%clk 0:02:24.8]} 22. Kb1
{[%clk 0:01:37.5]} 22... cxd4 {[%clk 0:02:17.7]} 23. cxd4 {[%clk 0:01:36.8]}
23... Nb6 {[%clk 0:02:17.6]} 24. b3 {[%clk 0:01:36.2]} 24... Kb8 {[%clk
0:02:10.5]} 25. Bf4 {[%clk 0:01:26.6]} 25... Rh4 {[%clk 0:02:02.1]} 26. Qa5
{[%clk 0:01:23.7]} 26... Ka7 {[%clk 0:01:50.3]} 27. Rc1 {[%clk 0:01:22.1]} 27...
Bf8 {[%clk 0:01:43.7]} 28. Bd2 {[%clk 0:01:18]} 28... Rh2 {[%clk 0:01:37.6]} 29.
Nf4 {[%clk 0:01:17.3]} 29... Qh7 {[%clk 0:01:28.2]} 30. Ne6 {[%clk 0:01:15.8]}
30... Re8 {[%clk 0:01:28.2]} 31. Nxf8 {[%clk 0:01:07.4]} 31... Rxf8 {[%clk
0:01:27.9]} 32. Bb4 {[%clk 0:01:06.3]} 32... Nd7 {[%clk 0:01:12.8]} 33. Bxf8
{[%clk 0:01:04.7]} 33... Nxf8 {[%clk 0:01:10.7]} 34. Qc5+ {[%clk 0:01:04.8]} 1-0

[Event "*** Titled Tuesday Blitz"]
[Site "Chess.com"]
[Date "2020.04.28"]
[Round "1"]
[White "FelixJoseYnojosa"]
[Black "TheoSlade"]
[Result "1-0"]
[WhiteElo "2615"]
[BlackElo "2294"]
[TimeControl "180+1"]
[EndTime "10:05:17 PDT"]
[Termination "FelixJoseYnojosa won by resignation"]

1. e4 {[%clk 0:03:00.9]} 1... e5 {[%clk 0:03:00]} 2. Nf3 {[%clk 0:03:01.2]} 2...
Nc6 {[%clk 0:03:00.3]} 3. Bc4 {[%clk 0:03:01.8]} 3... Bc5 {[%clk 0:03:00.1]} 4.
d3 {[%clk 0:03:02.4]} 4... Nf6 {[%clk 0:03:00.3]} 5. Nc3 {[%clk 0:03:03.1]} 5...
O-O {[%clk 0:02:59.6]} 6. Bg5 {[%clk 0:03:03.8]} 6... h6 {[%clk 0:02:59]} 7.
Bxf6 {[%clk 0:03:04.2]} 7... Qxf6 {[%clk 0:02:58.7]} 8. Nd5 {[%clk 0:03:03.2]}
8... Qd8 {[%clk 0:02:58.7]} 9. c3 {[%clk 0:03:03.8]} 9... d6 {[%clk 0:02:47.3]}
10. b4 {[%clk 0:03:03.7]} 10... Bb6 {[%clk 0:02:46]} 11. a4 {[%clk 0:03:04.3]}
11... a5 {[%clk 0:02:39.4]} 12. Nxb6 {[%clk 0:03:04.5]} 12... cxb6 {[%clk
0:02:40.3]} 13. b5 {[%clk 0:03:04.7]} 13... Ne7 {[%clk 0:02:36.5]} 14. Qb3
{[%clk 0:03:05.4]} 14... Ng6 {[%clk 0:02:30.5]} 15. Nd2 {[%clk 0:03:04.7]} 15...
Qe7 {[%clk 0:02:20.7]} 16. Nf1 {[%clk 0:03:04.9]} 16... Be6 {[%clk 0:02:17.7]}
17. Ne3 {[%clk 0:03:05.5]} 17... Bxc4 {[%clk 0:02:01.5]} 18. Qxc4 {[%clk
0:03:05]} 18... Rac8 {[%clk 0:02:00.4]} 19. Qb3 {[%clk 0:03:05.4]} 19... Nf4
{[%clk 0:01:56.1]} 20. Nd5 {[%clk 0:02:56.9]} 20... Nxd5 {[%clk 0:01:52.1]} 21.
exd5 {[%clk 0:02:56.1]} 21... e4 {[%clk 0:01:51]} 22. d4 {[%clk 0:02:52.4]}
22... Qc7 {[%clk 0:01:42.7]} 23. Kd2 {[%clk 0:02:48.5]} 23... Qc4 {[%clk
0:01:41.1]} 24. Qxc4 {[%clk 0:02:48.1]} 24... Rxc4 {[%clk 0:01:42]} 25. Rhe1
{[%clk 0:02:48.5]} 25... f5 {[%clk 0:01:41.3]} 26. Re3 {[%clk 0:02:46.9]} 26...
Kf7 {[%clk 0:01:38.6]} 27. g4 {[%clk 0:02:44.4]} 27... g6 {[%clk 0:01:37.3]} 28.
gxf5 {[%clk 0:02:44.8]} 28... gxf5 {[%clk 0:01:38.2]} 29. f3 {[%clk 0:02:45.4]}
29... exf3 {[%clk 0:01:33.4]} 30. Rxf3 {[%clk 0:02:46.1]} 30... Kf6 {[%clk
0:01:34]} 31. Raf1 {[%clk 0:02:44.9]} 31... Kg6 {[%clk 0:01:29.6]} 32. Rg1+
{[%clk 0:02:45.3]} 32... Kh7 {[%clk 0:01:25.6]} 33. Re1 {[%clk 0:02:45.7]} 33...
Rxa4 {[%clk 0:01:17.8]} 34. Re7+ {[%clk 0:02:46.1]} 34... Kg6 {[%clk 0:01:17.3]}
35. Rxb7 {[%clk 0:02:46.3]} 35... Ra2+ {[%clk 0:01:12.5]} 36. Kd3 {[%clk
0:02:46.7]} 36... Re8 {[%clk 0:01:06.8]} 37. Rxb6 {[%clk 0:02:46.2]} 37... Ree2
{[%clk 0:00:56.8]} 38. Rxd6+ {[%clk 0:02:46.5]} 38... Kg5 {[%clk 0:00:57.3]} 39.
Rd8 {[%clk 0:02:41.8]} 39... f4 {[%clk 0:00:51.3]} 40. Rg8+ {[%clk 0:02:41.1]}
40... Kf6 {[%clk 0:00:34.7]} 41. Rf8+ {[%clk 0:02:41.5]} 41... Ke7 {[%clk
0:00:34.7]} 42. R8xf4 {[%clk 0:02:41.6]} 42... a4 {[%clk 0:00:26.5]} 43. Rf7+
{[%clk 0:02:42]} 43... Kd6 {[%clk 0:00:22.3]} 44. R3f6+ {[%clk 0:02:41.9]} 44...
Re6 {[%clk 0:00:16.8]} 45. Rxe6+ {[%clk 0:02:42]} 45... Kxd5 {[%clk 0:00:17.2]}
46. Ra6 {[%clk 0:02:41.6]} 46... Rd2+ {[%clk 0:00:12.9]} 47. Kxd2 {[%clk
0:02:41.4]} 47... Kc4 {[%clk 0:00:11.8]} 48. b6 {[%clk 0:02:41.4]} 1-0

[Event "*** Titled Tuesday Blitz"]
[Site "Chess.com"]
[Date "2020.04.28"]
[Round "1"]
[White "turayev_shahruh17"]
[Black "mshuaau0"]
[Result "1-0"]
[WhiteElo "2506"]
[BlackElo "2107"]
[TimeControl "180+1"]
[EndTime "10:05:17 PDT"]
[Termination "turayev_shahruh17 won by checkmate"]

1. e4 {[%clk 0:03:00.5]} 1... e5 {[%clk 0:02:59.4]} 2. Nc3 {[%clk 0:03:01.1]}
2... Nf6 {[%clk 0:02:58.9]} 3. Bc4 {[%clk 0:03:01.6]} 3... Be7 {[%clk
0:02:57.6]} 4. f4 {[%clk 0:03:01.3]} 4... d6 {[%clk 0:02:55.6]} 5. Nf3 {[%clk
0:03:00.8]} 5... Nc6 {[%clk 0:02:55.3]} 6. O-O {[%clk 0:03:00.5]} 6... O-O
{[%clk 0:02:53.3]} 7. d3 {[%clk 0:03:00.1]} 7... a6 {[%clk 0:02:47.4]} 8. Qe1
{[%clk 0:02:58.3]} 8... Bg4 {[%clk 0:02:44.1]} 9. fxe5 {[%clk 0:02:52.4]} 9...
dxe5 {[%clk 0:02:42]} 10. Qg3 {[%clk 0:02:52.7]} 10... Bxf3 {[%clk 0:02:33.9]}
11. Rxf3 {[%clk 0:02:53.6]} 11... Nd4 {[%clk 0:02:32.7]} 12. Rf2 {[%clk
0:02:54]} 12... b5 {[%clk 0:02:26.3]} 13. Bb3 {[%clk 0:02:52.1]} 13... Nxb3
{[%clk 0:02:25.9]} 14. axb3 {[%clk 0:02:51.9]} 14... Bc5 {[%clk 0:02:25.4]} 15.
Be3 {[%clk 0:02:48.5]} 15... Bxe3 {[%clk 0:02:25.1]} 16. Qxe3 {[%clk 0:02:49.4]}
16... c6 {[%clk 0:02:22.7]} 17. Qg3 {[%clk 0:02:46.5]} 17... Nd7 {[%clk
0:02:22.4]} 18. Raf1 {[%clk 0:02:45.6]} 18... Qe7 {[%clk 0:02:20.1]} 19. Nd1
{[%clk 0:02:45.7]} 19... Kh8 {[%clk 0:02:08.8]} 20. Ne3 {[%clk 0:02:45.4]} 20...
g6 {[%clk 0:02:08.8]} 21. Ng4 {[%clk 0:02:41.3]} 21... h5 {[%clk 0:01:57.6]} 22.
Nf6 {[%clk 0:02:38.3]} 22... Nxf6 {[%clk 0:01:55.6]} 23. Rxf6 {[%clk 0:02:39.2]}
23... Rad8 {[%clk 0:01:49.5]} 24. Rxc6 {[%clk 0:02:37.9]} 24... Rc8 {[%clk
0:01:43.8]} 25. Rff6 {[%clk 0:02:15.2]} 25... Kg7 {[%clk 0:01:32.5]} 26. Rxg6+
{[%clk 0:01:57.2]} 26... fxg6 {[%clk 0:01:20.5]} 27. Qxg6+ {[%clk 0:01:57.7]}
27... Kh8 {[%clk 0:01:20.2]} 28. Qxh5+ {[%clk 0:01:58.6]} 28... Qh7 {[%clk
0:01:17.9]} 29. Rh6 {[%clk 0:01:58.8]} 29... Qxh6 {[%clk 0:01:09.4]} 30. Qxh6+
{[%clk 0:01:59.4]} 30... Kg8 {[%clk 0:01:09.9]} 31. Qg5+ {[%clk 0:01:59.8]}
31... Kh7 {[%clk 0:01:09.4]} 32. Qh5+ {[%clk 0:01:58.5]} 32... Kg8 {[%clk
0:01:09.6]} 33. c3 {[%clk 0:01:52]} 33... Rce8 {[%clk 0:01:09.4]} 34. Qg6+
{[%clk 0:01:51.3]} 34... Kh8 {[%clk 0:01:09.3]} 35. h4 {[%clk 0:01:51.5]} 35...
Re7 {[%clk 0:01:02.1]} 36. Qxa6 {[%clk 0:01:50.5]} 36... Rg7 {[%clk 0:00:57.2]}
37. Qxb5 {[%clk 0:01:49.5]} 37... Rfg8 {[%clk 0:00:56.4]} 38. Qxe5 {[%clk
0:01:49.8]} 38... Kh7 {[%clk 0:00:56.6]} 39. Qh5# {[%clk 0:01:50.1]} 1-0

[Event "*** Titled Tuesday Blitz"]
[Site "Chess.com"]
[Date "2020.04.28"]
[Round "1"]
[White "EugeneRougon"]
[Black "Rakesh"]
[Result "1-0"]
[WhiteElo "2740"]
[BlackElo "2390"]
[TimeControl "180+1"]
[EndTime "10:05:19 PDT"]
[Termination "EugeneRougon won by resignation"]

1. e4 {[%clk 0:03:00.7]} 1... c5 {[%clk 0:03:00.3]} 2. Nf3 {[%clk 0:03:00.6]}
2... e6 {[%clk 0:03:00.5]} 3. g3 {[%clk 0:03:00.6]} 3... a6 {[%clk 0:02:58.5]}
4. Bg2 {[%clk 0:02:58.9]} 4... Nc6 {[%clk 0:02:52]} 5. O-O {[%clk 0:02:58.3]}
5... Nf6 {[%clk 0:02:45.8]} 6. e5 {[%clk 0:02:39.6]} 6... d5 {[%clk 0:02:45.2]}
7. exf6 {[%clk 0:02:39.5]} 7... Qxf6 {[%clk 0:02:44.5]} 8. Nc3 {[%clk
0:02:32.2]} 8... b5 {[%clk 0:02:42]} 9. Re1 {[%clk 0:02:32.1]} 9... Be7 {[%clk
0:02:40.3]} 10. d3 {[%clk 0:02:30.9]} 10... b4 {[%clk 0:02:38.4]} 11. Ne2 {[%clk
0:02:19.5]} 11... h6 {[%clk 0:02:37.8]} 12. Nf4 {[%clk 0:02:17.2]} 12... O-O
{[%clk 0:02:35.1]} 13. h4 {[%clk 0:02:13]} 13... Bd6 {[%clk 0:02:30.4]} 14. Nh2
{[%clk 0:01:45.4]} 14... Bb7 {[%clk 0:02:21.6]} 15. Nh5 {[%clk 0:01:35.9]} 15...
Qg6 {[%clk 0:02:14]} 16. Qg4 {[%clk 0:01:35.8]} 16... Nd4 {[%clk 0:02:10.2]} 17.
Qd1 {[%clk 0:01:14.9]} 17... f5 {[%clk 0:02:07]} 18. Bf4 {[%clk 0:01:10]} 18...
Rad8 {[%clk 0:02:01.8]} 19. c3 {[%clk 0:01:05.9]} 19... bxc3 {[%clk 0:01:59.8]}
20. bxc3 {[%clk 0:01:06.8]} 20... Nc6 {[%clk 0:01:57.7]} 21. Bxd6 {[%clk
0:01:06.7]} 21... Rxd6 {[%clk 0:01:58.6]} 22. Nf4 {[%clk 0:01:07.6]} 22... Qf6
{[%clk 0:01:56.8]} 23. Rb1 {[%clk 0:01:05.8]} 23... Bc8 {[%clk 0:01:54.9]} 24.
Qd2 {[%clk 0:01:02]} 24... Rfd8 {[%clk 0:01:46.5]} 25. Rb6 {[%clk 0:00:51.4]}
25... Qf7 {[%clk 0:01:18.5]} 26. d4 {[%clk 0:00:47]} 26... cxd4 {[%clk
0:01:14.8]} 27. cxd4 {[%clk 0:00:47.9]} 1-0

[Event "*** Titled Tuesday Blitz"]
[Site "Chess.com"]
[Date "2020.04.28"]
[Round "1"]
[White "DonPreuss"]
[Black "Winehouse83"]
[Result "0-1"]
[WhiteElo "2193"]
[BlackElo "2538"]
[TimeControl "180+1"]
[EndTime "10:05:22 PDT"]
[Termination "Winehouse83 won on time"]

1. d4 {[%clk 0:02:59.7]} 1... Nf6 {[%clk 0:03:00]} 2. Nc3 {[%clk 0:02:58.8]}
2... d5 {[%clk 0:02:57.1]} 3. e4 {[%clk 0:02:58.9]} 3... dxe4 {[%clk 0:02:54.7]}
4. f3 {[%clk 0:02:59.2]} 4... exf3 {[%clk 0:02:52]} 5. Nxf3 {[%clk 0:03:00.1]}
5... Bf5 {[%clk 0:02:49]} 6. Ne5 {[%clk 0:02:59]} 6... e6 {[%clk 0:02:37.9]} 7.
Qf3 {[%clk 0:02:54.8]} 7... c6 {[%clk 0:02:32.5]} 8. g4 {[%clk 0:02:42.6]} 8...
Qxd4 {[%clk 0:02:14.1]} 9. gxf5 {[%clk 0:01:55.8]} 9... Qxe5+ {[%clk 0:02:12.6]}
10. Be3 {[%clk 0:01:51]} 10... Qxf5 {[%clk 0:02:09.7]} 11. Qxf5 {[%clk
0:01:50.8]} 11... exf5 {[%clk 0:02:10.6]} 12. O-O-O {[%clk 0:01:50]} 12... Bb4
{[%clk 0:02:08.5]} 13. Bd4 {[%clk 0:01:37.3]} 13... Nbd7 {[%clk 0:02:07.9]} 14.
Re1+ {[%clk 0:01:35.9]} 14... Kd8 {[%clk 0:02:08]} 15. Bc4 {[%clk 0:01:32.3]}
15... Rf8 {[%clk 0:02:01.6]} 16. a3 {[%clk 0:01:18.7]} 16... Bd6 {[%clk
0:02:00.5]} 17. Rd1 {[%clk 0:01:02.9]} 17... Kc7 {[%clk 0:02:00]} 18. Be3 {[%clk
0:00:19.8]} 18... f4 {[%clk 0:01:56.3]} 19. Bf2 {[%clk 0:00:11.9]} 19... Bc5
{[%clk 0:01:42.9]} 20. Bh4 {[%clk 0:00:10.5]} 20... Ne5 {[%clk 0:01:34.3]} 21.
Bxf6 {[%clk 0:00:05.5]} 21... gxf6 {[%clk 0:01:34.6]} 0-1

[Event "*** Titled Tuesday Blitz"]
[Site "Chess.com"]
[Date "2020.04.28"]
[Round "1"]
[White "BeanScreen"]
[Black "AcsinteMatei"]
[Result "1-0"]
[WhiteElo "2584"]
[BlackElo "2253"]
[TimeControl "180+1"]
[EndTime "10:05:24 PDT"]
[Termination "BeanScreen won by checkmate"]

1. e4 {[%clk 0:03:00.9]} 1... c6 {[%clk 0:02:59.1]} 2. d4 {[%clk 0:03:00.9]}
2... d5 {[%clk 0:02:58.9]} 3. exd5 {[%clk 0:03:01.8]} 3... cxd5 {[%clk
0:02:58.6]} 4. Bd3 {[%clk 0:03:02.5]} 4... Nc6 {[%clk 0:02:58.2]} 5. c3 {[%clk
0:03:03.1]} 5... Nf6 {[%clk 0:02:53]} 6. Bf4 {[%clk 0:03:03.4]} 6... e6 {[%clk
0:02:47]} 7. Nf3 {[%clk 0:03:03.1]} 7... Bd6 {[%clk 0:02:44.4]} 8. Bg3 {[%clk
0:03:02.1]} 8... a6 {[%clk 0:02:35.3]} 9. a4 {[%clk 0:03:00.5]} 9... Qe7 {[%clk
0:02:28.4]} 10. O-O {[%clk 0:02:59.2]} 10... O-O {[%clk 0:02:25.7]} 11. Re1
{[%clk 0:02:59.6]} 11... Bxg3 {[%clk 0:02:18.6]} 12. hxg3 {[%clk 0:02:59.9]}
12... Bd7 {[%clk 0:02:19]} 13. Nbd2 {[%clk 0:02:59.7]} 13... Rfc8 {[%clk
0:02:19.2]} 14. Ne5 {[%clk 0:02:58.5]} 14... Nxe5 {[%clk 0:02:18.4]} 15. dxe5
{[%clk 0:02:59.4]} 15... Ne8 {[%clk 0:02:19]} 16. Nf3 {[%clk 0:02:55.6]} 16...
b5 {[%clk 0:02:10.5]} 17. axb5 {[%clk 0:02:54.7]} 17... axb5 {[%clk 0:02:11.4]}
18. Qd2 {[%clk 0:02:24.9]} 18... h6 {[%clk 0:02:06]} 19. b4 {[%clk 0:02:23.5]}
19... f6 {[%clk 0:01:56.7]} 20. exf6 {[%clk 0:02:19.7]} 20... Qxf6 {[%clk
0:01:57.6]} 21. Ne5 {[%clk 0:02:18.2]} 21... Rxa1 {[%clk 0:01:55.6]} 22. Nxd7
{[%clk 0:02:07.8]} 22... Rxe1+ {[%clk 0:01:43.4]} 23. Qxe1 {[%clk 0:02:08.7]}
23... Qxc3 {[%clk 0:01:41.1]} 24. Qxe6+ {[%clk 0:02:08.3]} 24... Kh8 {[%clk
0:01:39.6]} 25. Ne5 {[%clk 0:01:11.8]} 25... Nf6 {[%clk 0:00:52.3]} 26. Nf7+
{[%clk 0:01:11.3]} 26... Kg8 {[%clk 0:00:52.4]} 27. Nxh6+ {[%clk 0:01:11.7]}
27... Kh8 {[%clk 0:00:52]} 28. Qg8+ {[%clk 0:01:12.1]} 28... Rxg8 {[%clk
0:00:50.6]} 29. Nf7# {[%clk 0:01:13]} 1-0

[Event "*** Titled Tuesday Blitz"]
[Site "Chess.com"]
[Date "2020.04.28"]
[Round "1"]
[White "AlexZambrano"]
[Black "johnathan113"]
[Result "0-1"]
[WhiteElo "2319"]
[BlackElo "2647"]
[TimeControl "180+1"]
[EndTime "10:05:25 PDT"]
[Termination "johnathan113 won on time"]

1. Nf3 {[%clk 0:02:56.8]} 1... g6 {[%clk 0:02:59.5]} 2. d4 {[%clk 0:02:56.6]}
2... Nf6 {[%clk 0:02:58.6]} 3. g3 {[%clk 0:02:56.7]} 3... Bg7 {[%clk 0:02:58.8]}
4. c4 {[%clk 0:02:56.3]} 4... c5 {[%clk 0:02:58.4]} 5. Bg2 {[%clk 0:02:55.2]}
5... cxd4 {[%clk 0:02:59.3]} 6. Nxd4 {[%clk 0:02:55.4]} 6... O-O {[%clk
0:03:00]} 7. O-O {[%clk 0:02:55.1]} 7... Nc6 {[%clk 0:03:00.7]} 8. Nc3 {[%clk
0:02:54.2]} 8... Qa5 {[%clk 0:03:01.1]} 9. e4 {[%clk 0:02:48.4]} 9... d6 {[%clk
0:02:49.7]} 10. Nxc6 {[%clk 0:02:26.9]} 10... bxc6 {[%clk 0:02:49.7]} 11. Bd2
{[%clk 0:02:21]} 11... Bg4 {[%clk 0:02:41.8]} 12. Bf3 {[%clk 0:02:15.4]} 12...
Qh5 {[%clk 0:02:39.2]} 13. Bxg4 {[%clk 0:01:54]} 13... Nxg4 {[%clk 0:02:40.1]}
14. h4 {[%clk 0:01:46.5]} 14... Ne5 {[%clk 0:02:40.5]} 15. Qxh5 {[%clk
0:01:37.5]} 15... gxh5 {[%clk 0:02:41.4]} 16. Bg5 {[%clk 0:00:46.1]} 16... Rfe8
{[%clk 0:02:35.7]} 17. c5 {[%clk 0:00:28.6]} 17... dxc5 {[%clk 0:02:25.5]} 18.
Be3 {[%clk 0:00:11.6]} 18... Rab8 {[%clk 0:02:18.8]} 19. Bxc5 {[%clk 0:00:08.8]}
19... Rxb2 {[%clk 0:02:17.9]} 20. Na4 {[%clk 0:00:06.2]} 20... Re2 {[%clk
0:02:12]} 21. Kg2 {[%clk 0:00:05.3]} 21... Nd3 {[%clk 0:02:04.8]} 22. Be3 {[%clk
0:00:02.6]} 22... Bxa1 {[%clk 0:02:03.1]} 23. Rxa1 {[%clk 0:00:03.1]} 23... Rb8
{[%clk 0:01:50]} 24. Nc3 {[%clk 0:00:01.7]} 24... Rc2 {[%clk 0:01:49]} 0-1

[Event "*** Titled Tuesday Blitz"]
[Site "Chess.com"]
[Date "2020.04.28"]
[Round "1"]
[White "Gennady_Kozlov"]
[Black "Kaua18"]
[Result "1-0"]
[WhiteElo "2581"]
[BlackElo "2248"]
[TimeControl "180+1"]
[EndTime "10:05:26 PDT"]
[Termination "Gennady_Kozlov won by resignation"]

1. b3 {[%clk 0:02:41.2]} 1... e5 {[%clk 0:02:59.5]} 2. Bb2 {[%clk 0:02:42]} 2...
Nc6 {[%clk 0:02:59.3]} 3. e3 {[%clk 0:02:42.4]} 3... Nf6 {[%clk 0:02:59]} 4. Bb5
{[%clk 0:02:41.8]} 4... Bd6 {[%clk 0:02:58.9]} 5. Nf3 {[%clk 0:02:41]} 5... Qe7
{[%clk 0:02:51.6]} 6. d4 {[%clk 0:02:39.7]} 6... e4 {[%clk 0:02:43.5]} 7. Nfd2
{[%clk 0:02:37.7]} 7... O-O {[%clk 0:02:41.7]} 8. Qe2 {[%clk 0:02:31.2]} 8... a6
{[%clk 0:02:36.9]} 9. Bxc6 {[%clk 0:02:28]} 9... dxc6 {[%clk 0:02:37.8]} 10. c4
{[%clk 0:02:25.7]} 10... Re8 {[%clk 0:02:36.2]} 11. Nc3 {[%clk 0:02:21.2]} 11...
Bg4 {[%clk 0:02:31.7]} 12. Qf1 {[%clk 0:02:20.6]} 12... Bh5 {[%clk 0:02:29.3]}
13. h3 {[%clk 0:02:19.7]} 13... h6 {[%clk 0:02:08.4]} 14. g4 {[%clk 0:02:18.7]}
14... Bg6 {[%clk 0:02:08]} 15. c5 {[%clk 0:02:18]} 15... Bxc5 {[%clk 0:02:02.5]}
16. dxc5 {[%clk 0:02:17.6]} 16... Qxc5 {[%clk 0:02:03.4]} 17. Qc4 {[%clk
0:02:17.4]} 17... Qg5 {[%clk 0:01:59.4]} 18. O-O-O {[%clk 0:02:13.2]} 18... Rad8
{[%clk 0:01:48.4]} 19. Qe2 {[%clk 0:01:45.7]} 19... Nd5 {[%clk 0:01:29.5]} 20.
Nxd5 {[%clk 0:01:43.6]} 20... Rxd5 {[%clk 0:01:24.4]} 21. Nc4 {[%clk 0:01:41.7]}
21... Red8 {[%clk 0:01:23.5]} 22. Rxd5 {[%clk 0:01:38]} 22... Rxd5 {[%clk
0:01:23.2]} 23. Rd1 {[%clk 0:01:36.9]} 23... h5 {[%clk 0:01:23.3]} 24. Rxd5
{[%clk 0:01:34]} 24... Qxd5 {[%clk 0:01:14.9]} 25. gxh5 {[%clk 0:01:31.2]} 25...
Bxh5 {[%clk 0:01:14.5]} 26. Qd2 {[%clk 0:01:31]} 26... Bf3 {[%clk 0:01:09.6]}
27. Ne5 {[%clk 0:01:26.5]} 27... Bg2 {[%clk 0:01:03.4]} 28. h4 {[%clk
0:01:25.9]} 28... f6 {[%clk 0:00:57.4]} 29. Ng6 {[%clk 0:01:22.8]} 29... Qxd2+
{[%clk 0:00:47.4]} 30. Kxd2 {[%clk 0:01:21.4]} 30... Bh3 {[%clk 0:00:47.7]} 31.
Kc3 {[%clk 0:01:19.7]} 31... Bf5 {[%clk 0:00:43]} 32. Ne7+ {[%clk 0:01:17.8]}
1-0

[Event "*** Titled Tuesday Blitz"]
[Site "Chess.com"]
[Date "2020.04.28"]
[Round "1"]
[White "Bastiandash"]
[Black "mbachez"]
[Result "0-1"]
[WhiteElo "1995"]
[BlackElo "2483"]
[TimeControl "180+1"]
[EndTime "10:05:27 PDT"]
[Termination "mbachez won by checkmate"]

1. d4 {[%clk 0:02:46.9]} 1... Nf6 {[%clk 0:02:59]} 2. Nf3 {[%clk 0:02:47.3]}
2... d5 {[%clk 0:02:58.3]} 3. c3 {[%clk 0:02:47.3]} 3... c5 {[%clk 0:02:56.1]}
4. Bg5 {[%clk 0:02:42.2]} 4... e6 {[%clk 0:02:41.7]} 5. e3 {[%clk 0:02:41.4]}
5... Nc6 {[%clk 0:02:41]} 6. Bd3 {[%clk 0:02:41.1]} 6... h6 {[%clk 0:02:40.5]}
7. Bh4 {[%clk 0:02:40]} 7... Bd6 {[%clk 0:02:38.1]} 8. Nbd2 {[%clk 0:02:39.1]}
8... O-O {[%clk 0:02:37.4]} 9. O-O {[%clk 0:02:38.9]} 9... e5 {[%clk 0:02:36.9]}
10. dxe5 {[%clk 0:02:37.7]} 10... Nxe5 {[%clk 0:02:36.1]} 11. Nxe5 {[%clk
0:02:38.6]} 11... Bxe5 {[%clk 0:02:36.1]} 12. Bg3 {[%clk 0:02:24.9]} 12... Re8
{[%clk 0:02:28.5]} 13. Qe2 {[%clk 0:02:07.5]} 13... Bg4 {[%clk 0:02:26.5]} 14.
f3 {[%clk 0:02:05.8]} 14... Bd7 {[%clk 0:02:19.5]} 15. Rae1 {[%clk 0:01:58.3]}
15... Qc7 {[%clk 0:02:17.7]} 16. Qf2 {[%clk 0:01:56.3]} 16... Re7 {[%clk
0:02:14.3]} 17. Bxe5 {[%clk 0:01:51.6]} 17... Rxe5 {[%clk 0:02:09.5]} 18. e4
{[%clk 0:01:40.2]} 18... c4 {[%clk 0:02:04.5]} 19. Bc2 {[%clk 0:01:37.2]} 19...
Rae8 {[%clk 0:02:03.3]} 20. exd5 {[%clk 0:00:38.7]} 20... Rxe1 {[%clk
0:02:02.4]} 21. Rxe1 {[%clk 0:00:39.6]} 21... Rxe1+ {[%clk 0:02:02]} 22. Qxe1
{[%clk 0:00:40.5]} 22... Qb6+ {[%clk 0:02:02.1]} 23. Kh1 {[%clk 0:00:19.7]}
23... Qxb2 {[%clk 0:02:01.8]} 24. Qd1 {[%clk 0:00:20]} 24... Qxc3 {[%clk
0:01:56.4]} 25. Ne4 {[%clk 0:00:18.7]} 25... Nxe4 {[%clk 0:01:44.4]} 26. fxe4
{[%clk 0:00:19.6]} 26... Bg4 {[%clk 0:01:38.7]} 27. Qxg4 {[%clk 0:00:18.2]}
27... Qe1# {[%clk 0:01:37.7]} 0-1